Cogmind - Beta 12 X4 @@@ ROGUE MODE // 2022.10.05 @ 03:08:33 Player: cptwinky Result: Destroyed by D-53 Grenadier with Mini Grenade Launcher Performance ------------- Evolutions (0) 0 Regions Visited (2) 400 Robots Destroyed (32) 160 Value Destroyed (621) 621 Prototype IDs (0) 0 Alien Tech Used (0) 0 Bonus (0) 0 TOTAL SCORE: 1181 Bonus ------- None Cogmind --------- Core Integrity 0/250 Matter 264/300 Energy 125/125 System Corruption 0% Temperature Cool (2) Movement Treading (160) Location -10/Mines Parts ------- > --- POWER (1) -------- Light Ion Engine > --- PROPULSION (2) --- Light Treads Light Treads > --- UTILITY (2) ------ Large Storage Unit > --- WEAPON (2) ------- Assault Rifle Autogun > --- INVENTORY (15) --- Light Nuclear Core Light Treads Armored Wheel Armored Wheel Armored Wheel High-capacity Matter Pod (198) Structural Scanner Autogun Autogun Autogun Rocket Launcher Datajack Heavy Explosive Trap Heavy Explosive Trap Heavy Explosive Trap Peak State ------------ > --- POWER ------------ Light Ion Engine > --- PROPULSION ------- Light Treads Light Treads > --- UTILITY ---------- Large Storage Unit Visual Processing Unit > --- WEAPON ----------- Assault Rifle Autogun > --- INVENTORY -------- Light Ion Engine Light Treads Compact Wheel Armored Wheel Armored Wheel Armored Wheel High-capacity Matter Pod Structural Scanner Medium Laser Light Assault Rifle Autogun Autogun Autogun Datajack [Rating: 11] Favorites ----------- Power Light Ion Engine Engine Light Ion Engine Propulsion Light Treads Treads Light Treads Leg Aluminum Leg Utility Large Storage Unit Storage Large Storage Unit Processor Visual Processing Unit Protection Light Armor Plating Weapon Assault Rifle Energy Gun Small Laser Ballistic Gun Assault Rifle Special Melee Weapon Datajack Build | -11 -10 -10 ------- Run | Scr Mat Min Slots Evolved . | . . . Power . | . . . Propulsion . | . . . Utility . | . . . Weapon . | . . . Parts Attached 22 | 2 17 3 Power 2 | . 1 1 Engine 2 | . 1 1 Core . | . . . Reactor . | . . . Propulsion 6 | 2 4 . Treads 6 | 2 4 . Leg . | . . . Wheel . | . . . Hover . | . . . Flight . | . . . Utility 4 | . 3 1 Device . | . . . Storage 2 | . 2 . Processor 1 | . 1 . Hackware . | . . . Protection 1 | . . 1 Artifact . | . . . Weapon 10 | . 9 1 Energy Gun . | . . . Energy Cannon . | . . . Ballistic Gun 7 | . 6 1 Ballistic Cannon . | . . . Launcher . | . . . Special Weapon . | . . . Impact Weapon . | . . . Slashing Weapon . | . . . Piercing Weapon . | . . . Special Melee Weapon 3 | . 3 . Unidentified Prototypes . | . . . Parts Lost 3 | . 1 2 Power . | . . . Propulsion . | . . . Utility 1 | . . 1 Weapon 2 | . 1 1 Highest Loss Streak 1 | . 1 1 To Critical Strikes . | . . . Average Slot Usage (%) 97 | . 97 99 Engine 14 | . 14 14 Treads 27 | . 27 28 Storage 14 | . 14 14 Processor 10 | . 11 4 Protection 1 | . . 9 Ballistic Gun 25 | . 25 28 Special Melee Weapon 2 | . 2 . Naked Turns . | . . . Heaviest Build 31 | 11 27 31 Greatest Support 40 | 40 40 40 Greatest Overweight (x) 1 | . 1 . Average Overweight (x) . | . . . Largest Inventory Capacity 15 | 8 15 15 Average Capacity 14 | 8 14 15 Most Carried 15 | 6 15 15 Average Carried 12 | 6 11 14 Final Capacity 15 | 8 15 15 Final Carried 15 | 6 15 15 Class Distribution -------------------- 100% | Mutant Dominant Class ---------------- Mutant | -10/Materials Mutant | -10/Mines Resources | -11 -10 -10 ----------- Run | Scr Mat Min Matter Collected 1072 | 220 726 126 Remotely . | . . . Salvage Created 978 | . 852 126 Parts 76 | . 65 11 Haulers Intercepted 2 | . 2 . Recyclers Shooed 1 | . 1 . Parts Field Recycled . | . . . Retrieved Matter . | . . . Parts Self-Destructed . | . . . Prevented . | . . . Kills | -11 -10 -10 ------- Run | Scr Mat Min Combat Hostiles Destroyed 24 | . 19 5 Guns 24 | . 19 5 Classes Destroyed 6 | . 6 . Hauler 2 | . 2 . Recycler 2 | . 2 . Operator 1 | . 1 . Watcher 3 | . 3 . Swarmer 12 | . 9 3 Grunt 12 | . 10 2 Best Kill Streak 5 | . 5 3 Combat Bots Only 3 | . 3 3 Max Kills in Single Turn 1 | . 1 1 Gunslinging . | . . . Exploded . | . . . Melee . | . . . Uniques/NPCs Destroyed . | . . . Combat | -11 -10 -10 -------- Run | Scr Mat Min Damage Taken 1112 | . 644 468 Core 275 | . 151 124 Absorbed by Shields . | . . . Regen/Repaired (Parts) 131 | . 131 . Core Remaining (%) 100 | 100 . . Volleys Fired 83 | . 67 16 Largest 2 | . 2 2 Hottest 43 | . 40 43 Shots Fired 166 | . 134 32 Gun 166 | . 134 32 Cannon . | . . . Launcher . | . . . Special . | . . . Kinetic 166 | . 134 32 Thermal . | . . . Explosive . | . . . Electromagnetic . | . . . Robot Hit Streak 12 | . 12 6 Robot Miss Streak 3 | . 3 2 Penetration Max . | . . . Secondary Targets 3 | . 2 1 Max Gunslinging Chain 1 | . 1 1 Shots Hit Robots 114 | . 92 22 Core Hits 46 | . 39 7 Critical Kills 1 | . 1 . Critical Parts Destroyed 2 | . 2 . Critical Strikes 3 | . 3 . Destroy 3 | . 3 . Melee Attacks . | . . . Impact . | . . . Slashing . | . . . Piercing . | . . . Sneak Attacks . | . . . Combat Hostiles . | . . . Follow-up Attacks . | . . . Damage Inflicted 1548 | . 1221 327 Guns 1535 | . 1215 320 Cannons . | . . . Explosions . | . . . Melee . | . . . Ramming 13 | . 6 7 Kinetic 1535 | . 1215 320 Thermal . | . . . Explosive . | . . . Electromagnetic . | . . . Impact . | . . . Slashing . | . . . Piercing . | . . . Highest Corruption . | . . . Average Corruption . | . . . Corruption Purged . | . . . Corruption Blocked . | . . . Overload Shots . | . . . Overflow Damage . | . . . Projectiles . | . . . Explosions . | . . . Melee . | . . . Knockbacks . | . . . Impact . | . . . Kinetic . | . . . Secondary . | . . . Self-Inflicted Damage . | . . . Shots . | . . . Rammed 3 | . 2 1 Targets Rammed 3 | . 2 1 Kicked . | . . . Crushed . | . . . Highest Temperature 17 | . . 17 Average Temperature 5 | . . 5 Received Heat Transfer 252 | . 204 48 Siege Activations . | . . . Robots Corrupted . | . . . Combat Hostiles . | . . . Parts Fried . | . . . Impact Corruptions . | . . . Robots Melted . | . . . Combat Hostiles . | . . . Parts Melted . | . . . Heat Transferred . | . . . Parts Sabotaged . | . . . Parts Stolen . | . . . Parts Stripped . | . . . Power Chain Reactions . | . . . Missiles Intercepted . | . . . Alert | -11 -10 -10 ------- Run | Scr Mat Min Peak Influence 325 | . 325 161 Initial 51 | . . 51 Average 97 | . 99 93 Maximum Alert Level 1 | . 1 . Low Security (%) 93 | 100 91 100 Level 1 6 | . 8 . Level 2 . | . . . Level 3 . | . . . Level 4 . | . . . Level 5 . | . . . High Security . | . . . Max Security . | . . . Squads Dispatched 5 | . 5 . Investigation 3 | . 3 . Extermination . | . . . Reinforcement 2 | . 2 . Assault . | . . . Garrison . | . . . Intercept . | . . . Searches Triggered . | . . . Construction Impeded . | . . . Haulers Reinforced . | . . . Active Scanning Responses . | . . . Cargo Convoy Interrupts . | . . . Stealth | -11 -10 -10 --------- Run | Scr Mat Min Distress Signals 3 | . 3 . Communications Jammed . | . . . Distress Signals . | . . . Times Spotted 37 | . 30 7 Peak Tracking Total 4 | . 4 3 Tactical Retreats 2 | . 2 . Traps | -11 -10 -10 ------- Run | Scr Mat Min Traps Triggered 2 | . 2 . Indirectly . | . . . Trap Hack Attempts 119 | . 119 . Triggered 1 | . 1 . Disarmed 1 | . 1 . Reprogrammed 10 | . 10 . Reused 1 | . 1 . Traps Extracted . | . . . Installed . | . . . Triggered 1 | . 1 . Most Traps Carried 3 | . . 3 Machines | -11 -10 -10 ---------- Run | Scr Mat Min Machines Disabled . | . . . Max in Single Turn . | . . . Machines Sabotaged . | . . . Overloaded Fab Kills . | . . . Hacking | -11 -10 -10 --------- Run | Scr Mat Min Machines Accessed 8 | . 8 . Terminals 5 | . 5 . Fabricators . | . . . Repair Stations 1 | . 1 . Recycling Units 2 | . 2 . Scanalyzers . | . . . Garrison Access . | . . . Total Hacks 24 | . 24 . Successful 15 | . 15 . Failed 9 | . 9 . Catastrophic . | . . . Database Lockouts . | . . . Manual 14 | . 14 . Terminals 16 | . 16 . Fabricators . | . . . Repair Stations 4 | . 4 . Recycling Units 4 | . 4 . Scanalyzers . | . . . Garrison Access . | . . . Terminal Hacks 4 | . 4 . Robot Analysis 3 | . 3 . Locate Traps 1 | . 1 . Fabricator Hacks . | . . . Repair Station Hacks 4 | . 4 . Scan Component 2 | . 2 . Repair 2 | . 2 . Recycling Unit Hacks 2 | . 2 . Retrieve Components 2 | . 2 . Scanalyzer . | . . . Garrison Access Hacks . | . . . Unauthorized Hacks 5 | . 5 . Terminals 3 | . 3 . Track 1 | . 1 . Botnet 2 | . 2 . Fabricators . | . . . Repair Stations . | . . . Recycling Units 2 | . 2 . Tunnel 2 | . 2 . Scanalyzers . | . . . Garrison Access . | . . . Data Cores Recovered . | . . . Used . | . . . Hacking Detections 6 | . 6 . Full Trace Events . | . . . Feedback Events . | . . . Feedback Blocked . | . . . Robot Schematics Acquired . | . . . Robots Built . | . . . Authchips . | . . . Time . | . . . Total Robot Build Rating . | . . . Part Schematics Acquired . | . . . Parts Built . | . . . Authchips . | . . . Time . | . . . Total Part Build Rating . | . . . Parts Repaired 2 | . 2 . Time 52 | . 52 . Parts Recycled . | . . . Recycled Matter . | . . . Retrieved Matter . | . . . Retrieved Components 18 | . 18 . Parts Scanalyzed . | . . . Part Schematics Acquired . | . . . Parts Damaged . | . . . Bothacking | -11 -10 -10 ------------ Run | Scr Mat Min Used RIF Installer . | . . . Robots Hacked . | . . . Non-combat . | . . . Combat . | . . . Robot Hacks Applied . | . . . Relay Couplers Released . | . . . Fabnet Peak Effective % . | . . . Robots Rewired . | . . . Allies Hacked . | . . . Hacks Repelled . | . . . Allies | -11 -10 -10 -------- Run | Scr Mat Min Total Allies . | . . . Largest Group . | . . . Highest-Rated Group . | . . . Highest-Rated Ally . | . . . Total Orders . | . . . Ally Attacks . | . . . Total Damage . | . . . Kills . | . . . Allies Corrupted . | . . . Allies Melted . | . . . Intel | -11 -10 -10 ------- Run | Scr Mat Min Robot Analysis Total 3 | . 3 . Derelict Logs Recovered 1 | . . 1 Drone Launches . | . . . Drone Recoveries . | . . . Exploration | -11 -10 -10 ------------- Run | Scr Mat Min Turns Passed 2819 | 13 2274 532 Spaces Moved 1101 | 7 806 288 Core . | . . . Treads 1101 | 7 806 288 Legs . | . . . Wheels . | . . . Hover . | . . . Flight . | . . . Fastest Speed 160 | 160 160 160 Average Speed 160 | 160 160 160 Slowest Speed 240 | 160 240 160 Overloaded Moves . | . . . Propulsion Burnouts . | . . . Robots Hopped . | . . . Cave-ins Triggered . | . . . Exploration Rate (%) 48 | 2 96 47 Regions Visited 2 Branch Regions 1 Pre-discovered Areas 2 | . 2 . Known Exits Taken . | . . . Unknown Exits Taken 2 | 1 1 . Scrap Searched . | . . . Spaces Dug . | . . . Terrain Destroyed . | . . . Melee . | . . . Projectile . | . . . AOE . | . . . Terrain Rammed . | . . . Walls Destroyed . | . . . Machines Disabled . | . . . Actions | -11 -10 -10 --------- Run | Scr Mat Min Total 1994 | 8 1654 332 Wait 628 | . 618 10 Move 1099 | 6 805 288 Hop . | . . . Pick Up 23 | . 16 7 Fast Attach 8 | . 7 1 Attach 3 | . 2 1 Detach 3 | . 2 1 Swap 11 | 2 8 1 Drop 14 | . 8 6 Fire 83 | . 67 16 Melee . | . . . Ram . | . . . Kick . | . . . Crush 3 | . 2 1 Escape Stasis . | . . . Rewire . | . . . Trap 119 | . 119 . Miscellaneous . | . . . Route ------- -11/Scrapyard -10/Materials (discovered 4 exits: [*Mat x3] / [*Min]) -10/Mines History --------- Turn | Location | Event 4 | -11/Scrapyard | Discovered new exit (range 3) 14 | -11/Scrapyard | Entered Materials 171 | -10/Materials | Discovered new exit (range 9) 308 | -10/Materials | Build established: Mutant 643 | -10/Materials | Discovered new exit (range 12) 812 | -10/Materials | Discovered new exit (range 17) 1432 | -10/Materials | Discovered new exit (range 5) 1548 | -10/Materials | Core integrity fell below 50% 1955 | -10/Materials | Repaired Lgt. Treads 1982 | -10/Materials | Repaired Lgt. Treads 2288 | -10/Materials | Entered Mines 2289 | -10/Mines | Assembled infested the area 2507 | -10/Mines | Learned Materials terminal intel 2535 | -10/Mines | Received a Rocket Launcher from a helpful Derelict 2608 | -10/Mines | Found a hidden stash of uninstalled traps 2817 | -10/Mines | Core integrity fell below 20% 2820 | -10/Mines | Destroyed by D-53 Grenadier with Mini Grenade Launcher Last Messages --------------- 02532_ 4Q-45V(g): "Everyone knows a good old rocket launcher goes a long way." 02533_ 4Q-45V(g): "Need to get rid of a swarm? Done. Need a big hole in the wall? Done." 02534_ 4Q-45V(g): "Need a small hole in the wall? Leave that to the mining laser wimps, I say!" 02535_ 4Q-45V(g): "Would you like a rocket launcher? I know I would if I were you, so I'm going to lend you mine." 02535_ 4Q-45V(g) slips back into the shadows. 02538_ Dropped Med. Laser. 02538_ Acquired Rocket Launcher. 02608_ A stash of uninstalled traps is collected here! 02609_ Dropped Lgt. Assault Rifle. 02611_ Dropped Imp. Heat Sink. 02613_ Acquired Heavy Explosive Trap. 02763_ Slammed into K-01 Serf. 02789_ K-01 Serf collects debris. 02810_ Lgt. Armor Plating destroyed. 02810_ K-01 Serf collects debris. 02813_ The unstable cave ceiling collapses. Map ----- +----------------------------------------------------+ | ???## ######??? | | ??## ###### ########???????? | | ??# ##????# #??????????????? | | ??# ###?????# #??????????????? | | ??## ##???????# #??????????????? | | ???## ##????????# #######????????? | | ????# ###?????????# ########## | | ????# #???????????####### ## | | ????# #????????????????## ## ###### | | ????# #???????????????## ## #????? | | ????# #???????????????# ## #????? | | ????# #???????????????#! ## #????? | | ????# #???????????????## # #????? | | ????# #????????????????## * #????? | | ????# #?????????????????# = #????? | | ????# ######????????????##| ! #????? | | ????# #?????????????## ##????? | | ????##### #??????????????####?????? | | ????????# #???????????????????????? | | ????????# #???????????????????????? | | ????????# ####????????????????????? | | ???????##r ##???????????????????? | | ??????### ##??????????????????? | | ??????# #??????????????????? | | ??????# ####???????????????? | | ??????# @ d #????????? | | ??????# k ####???????????????? | | ?????# #??????????????????? | | ?????# ##??????????????????? | | ????# #???????????????????? | | ????# #???????????????????? | | ????## ##???????????????????? | | ?????##### ####????????????????????? | | ?????????# #???????????????????????? | | ?????????# #???????????????????????? | | ?????????# #???????????????????????? | | ?????????# #???????????????????????? | | ?????????# ???????????????????????? | | ??????????##???????????????????????? | | ???????????????????????????????????? | | ???????????????????????????????????? | | ???????????????????????????????????? | | ???????????????????????????????????? | | ???????????????????????????????????? | | ???????????????????????????????????? | | ???????????????????????????????????? | | ???????????????????????????????????? | | ???????????????????????????????????? | | ???????????????????????????????????? | | ???????????????????????????????????? | +----------------------------------------------------+ Best States ------------- Heat Dissipation 25 Energy Generation 10 Energy Capacity 125 Matter Stores 300 Matter Capacity 300 Sight Range 18 Terrain Scan Density 10 Armor Coverage 150 Evasion (%) 40 Recoil Reduction 2 Item Schematics ----------------- None Robot Schematics ------------------ None Fabricated ------------ Nothing Alien Tech Used ----------------- None Achievements -------------- None Challenges ------------ None Game ------ Seed ProtonDerelictLog Manual? 0 Play Time 00:10:30 Cumulative 1201.3 hours Start 2022.10.05 @ 02:59:47 End 2022.10.05 @ 03:08:33 Sessions 1 Manual Loads 0 Difficulty Rogue Special Mode None Game No. 834 Rogue 830 Adventurer 4 Explorer 0 Win Type - Total 130 Types 100/9/8/5/2/0/1/3/2 Lore% 94 Gallery% 98 Achievement% 98 Wizard Run 0 Options --------- ASCII 0 Keyboard 1 Movement Vi Keybinds 0 Fullscreen 0 Font 20/X11 Map View 76x50 Tactical HUD 1 Map Filters NONE Filters NONE Steam 1 RUN: ac7f32e5-cc5c-42d3-86e9-2ecec7d371a2